Workbook

Sheet Portfolio PR
A1: Direction | B1: ISIN | C1: Nom du titre | D1: Date de transaction | E1: Prix de revient | F1: Quantité | G1: Montant investi | H1: Stop-Loss | I1: Target | J1: Risk-Reward | K1: MtM 27.03.2020 | L1: Performance | M1: Montant MtM | N1: Target reach | O1: Stop reach | P1: Analysis | Q1: Motif AT et/ou F | R1: Periode hold days | S1: Periode hold months
A2: Long | B2: LU0854423687 | C2: LYXOR ETF MSC GLDE | D2: 43910 | E2: 64.625 | F2: 62 | G2: =F2*E2 -> 4006.75 | H2: 55 | I2: 85 | J2: =($I2-$E2)/($E2-$H2) -> 2.116883117 | K2: 67 | L2: =IF($K2<=$H2,0,($K2-$E2)/$E2) -> 0.03675048356 | M2: =IF($K2<=$H2,$F2*H2,$F2*$K2) -> 4154 | N2: =IF($K2>=$I2,"Yes","No") -> No | O2: No | P2: Coronavirus crisis, economy recovery and states, central banks stimulus | Q2: F | R2: =_xlfn.DAYS(TODAY(),$D2) -> 288 | S2: =(_xlfn.DAYS(TODAY(),$D2))/30 -> 9.6
U4: Portfolio global return: | X4: =(SUM($M:$M)-SUM($G:$G))/SUM($G:$G) -> 0.03675048356
U5: Portfolio capital: | X5: =SUM($G:$G) -> 4006.75
U6: Portfolio MtM: | X6: =SUM($M:$M) -> 4154

Sheet Trades
A1: Direction | B1: ISIN | C1: Nom du titre | D1: Date de transaction | E1: Prix de revient | F1: Quantité | G1: Montant investi | H1: Stop-Loss | I1: Target | J1: RisP-Reward | K1: Exit Price | L1: Performance | M1: Montant MtM | N1: Target reach | O1: Stop reach | P1: Trading costs | Q1: Net P&L | R1: Exit date | S1: Analysis | T1: Motif AT et/ou F | U1: Periode hold days | V1: Periode hold months | Z1: Portfolio average return: | AC1: =AVERAGE(L:L) -> 0.4176090468
A2: Long | B2: FR0000120685 | C2: NATIXIS | D2: 43913 | E2: 2.476 | F2: 2026 | G2: =F2*E2 -> 5016.376 | H2: 1.471 | I2: 4.3 | J2: =($I2-$E2)/($E2-$H2) -> 1.814925373 | K2: 3.51 | L2: =IF($K2<=$H2,0,($K2-$E2)/$E2) -> 0.4176090468 | M2: =IF($K2<=$H2,$F2*H2,$F2*$K2) -> 7111.26 | N2: =IF($K2>=$I2,"Yes","No") -> No | O2: No | P2: =G2*0.006+M2*0.006 -> 72.765816 | Q2: =(M2-G2)-P2 -> 2022.118184 | R2: 43917 | S2: Coronavirus crisis, economy recovery and states, central banks stimulus | T2: F | U2: =_xlfn.DAYS($R2,$D2) -> 4 | V2: =(_xlfn.DAYS(TODAY(),$D2))/30 -> 9.5 | Z2: Total traded capital: | AC2: =SUM($G:$G) -> 5016.376
P17: P&L: | Q17: =SUM(Q2:Q16) -> 2022.118184

Sheet TCD
B1: Values | H1: Row Labels | I1: Periode hold months | J1: Average of Performance | K1: Count of Montant MtM | M1: Row Labels | N1: Average of Performance
A2: Motif AT et/ou F | B2: Average of Performance | C2: Count of Montant MtM | H2: No | J2: 0.1753965184 | K2: 1 | M2: (blank)
A3: F | B3: 0.1753965184 | C3: 1 | H3: No | J3: 0.1753965184 | K3: 1 | M3: 0.2333333333 | N3: 0.1753965184
A4: (blank) | H4: 2.116883117 | I4: 0.2333333333 | J4: 0.1753965184 | K4: 1 | M4: Grand Total | N4: 0.1753965184
A5: Grand Total | B5: 0.1753965184 | C5: 1 | H5: (blank)
H6: (blank)
H7: (blank) | I7: (blank)
H8: Grand Total | J8: 0.1753965184 | K8: 1
A18: Row Labels | B18: Average of Performance
A19: 2.116883117 | B19: 0.1753965184
A20: (blank)
A21: Grand Total | B21: 0.1753965184
